[Event "Top 12 Féminin 2026"]
[Site "Asnières-sur-Seine, France"]
[Date "2026.05.17"]
[Round "5.13"]
[White "Vega Gutierrez, Sabrina"]
[Black "Gaal, Zsoka"]
[Result "1-0"]
[TimeControl "1h30 / 40 moves + 30m + 30sec/move"]
[WhiteTitle "IM"]
[BlackTitle "IM"]
[WhiteFideId "-"]
[BlackFideId "-"]
[WhiteElo "2375"]
[BlackElo "2374"]

1. e4 {[%clk 01:30:57]} {[%emt 00:00:03]} Nf6 {[%clk 01:30:50]} {[%emt
00:00:10]} 2. e5 {[%clk 01:31:17]} {[%emt 00:00:10]} Nd5 {[%clk 01:31:13]}
{[%emt 00:00:06]} 3. c4 {[%clk 01:31:41]} {[%emt 00:00:06]} Nb6 {[%clk
01:31:38]} {[%emt 00:00:05]} 4. d4 {[%clk 01:32:06]} {[%emt 00:00:05]} d6
{[%clk 01:32:03]} {[%emt 00:00:06]} 5. exd6 {[%clk 01:32:30]} {[%emt 00:00:06]}
cxd6 {[%clk 01:32:29]} {[%emt 00:00:05]} 6. Nc3 {[%clk 01:32:48]} {[%emt
00:00:12]} g6 {[%clk 01:32:52]} {[%emt 00:00:07]} 7. h3 {[%clk 01:32:56]}
{[%emt 00:00:21]} Bg7 {[%clk 01:33:11]} {[%emt 00:00:11]} 8. Nf3 {[%clk
01:33:15]} {[%emt 00:00:10]} O-O {[%clk 01:33:21]} {[%emt 00:00:21]} 9. Be2
{[%clk 01:33:38]} {[%emt 00:00:07]} Nc6 {[%clk 01:33:16]} {[%emt 00:00:35]} 10.
O-O {[%clk 01:33:45]} {[%emt 00:00:23]} h6 {[%clk 01:31:07]} {[%emt 00:02:39]}
11. a4 {[%clk 01:15:25]} {[%emt 00:18:50]} e5 {[%clk 01:20:37]} {[%emt
00:11:00]} 12. Be3 {[%clk 01:01:18]} {[%emt 00:14:37]} f5 {[%clk 01:16:49]}
{[%emt 00:04:18]} 13. dxe5 {[%clk 01:00:27]} {[%emt 00:01:21]} dxe5 {[%clk
01:11:15]} {[%emt 00:06:05]} 14. a5 {[%clk 00:56:59]} {[%emt 00:03:57]} Nd7
{[%clk 01:08:46]} {[%emt 00:02:58]} 15. Qd6 {[%clk 00:46:55]} {[%emt 00:10:35]}
Kh7 {[%clk 01:06:42]} {[%emt 00:02:34]} 16. Rfd1 {[%clk 00:46:22]} {[%emt
00:01:03]} e4 {[%clk 00:46:15]} {[%emt 00:20:58]} 17. Nd4 {[%clk 00:43:34]}
{[%emt 00:03:18]} Nde5 {[%clk 00:37:58]} {[%emt 00:08:47]} 18. Nxc6 {[%clk
00:43:56]} {[%emt 00:00:08]} Qxd6 {[%clk 00:38:03]} {[%emt 00:00:25]} 19. Rxd6
{[%clk 00:44:21]} {[%emt 00:00:04]} Nxc6 {[%clk 00:38:24]} {[%emt 00:00:09]} 20.
f4 {[%clk 00:30:55]} {[%emt 00:13:56]} Rf7 {[%clk 00:32:43]} {[%emt 00:06:11]}
21. c5 {[%clk 00:29:19]} {[%emt 00:02:07]} Bf8 {[%clk 00:29:23]} {[%emt
00:03:50]} 22. Bc4 {[%clk 00:23:51]} {[%emt 00:05:58]} Bxd6 {[%clk 00:28:04]}
{[%emt 00:01:49]} 23. Bxf7 {[%clk 00:24:19]} {[%emt 00:00:02]} Bc7 {[%clk
00:27:00]} {[%emt 00:01:34]} 24. a6 {[%clk 00:24:21]} {[%emt 00:00:28]} Rb8
{[%clk 00:15:55]} {[%emt 00:11:35]} 25. Bd5 {[%clk 00:19:24]} {[%emt 00:05:26]}
Nb4 {[%clk 00:11:35]} {[%emt 00:04:50]} 26. axb7 {[%clk 00:19:51]} {[%emt
00:00:03]} Bxb7 {[%clk 00:11:52]} {[%emt 00:00:13]} 27. Rxa7 {[%clk 00:18:58]}
{[%emt 00:01:23]} Nxd5 {[%clk 00:12:15]} {[%emt 00:00:07]} 28. Nxd5 {[%clk
00:19:18]} {[%emt 00:00:10]} Bxd5 {[%clk 00:12:35]} {[%emt 00:00:10]} 29. Rxc7+
{[%clk 00:19:41]} {[%emt 00:00:06]} Kg8 {[%clk 00:13:01]} {[%emt 00:00:05]} 30.
Bd4 {[%clk 00:15:15]} {[%emt 00:04:56]} Rb7 {[%clk 00:10:36]} {[%emt 00:02:55]}
31. Rc8+ {[%clk 00:10:10]} {[%emt 00:05:35]} Kf7 {[%clk 00:11:02]} {[%emt
00:00:05]} 32. Rd8 {[%clk 00:06:55]} {[%emt 00:03:46]} Be6 {[%clk 00:10:17]}
{[%emt 00:01:15]} 33. c6 {[%clk 00:06:48]} {[%emt 00:00:37]} Rb4 {[%clk
00:10:27]} {[%emt 00:00:19]} 34. Rd6 {[%clk 00:00:39]} {[%emt 00:06:40]} Rc4
{[%clk 00:09:49]} {[%emt 00:01:08]} 35. Kf2 {[%clk 00:01:02]} {[%emt 00:00:06]}
Ke7 {[%clk 00:03:33]} {[%emt 00:06:46]} 36. Be5 {[%clk 00:01:31]} {[%emt
00:00:02]} Rc2+ {[%clk 00:03:36]} {[%emt 00:00:27]} 37. Ke3 {[%clk 00:01:59]}
{[%emt 00:00:02]} Rxg2 {[%clk 00:03:56]} {[%emt 00:00:10]} 38. c7 {[%clk
00:01:49]} {[%emt 00:00:40]} Rc2 {[%clk 00:04:17]} {[%emt 00:00:09]} 39. Rd8
{[%clk 00:01:30]} {[%emt 00:00:48]} Rc4 {[%clk 00:03:34]} {[%emt 00:01:14]} 40.
b3 {[%clk 00:00:35]} {[%emt 00:01:26]} Rc1 {[%clk 00:01:44]} {[%emt 00:02:19]}
41. Kd2 {[%clk 00:24:21]} {[%emt 00:06:43]} Rc6 {[%clk 00:26:32]} {[%emt
00:05:42]} 42. b4 {[%clk 00:24:24]} {[%emt 00:00:27]} g5 {[%clk 00:25:12]}
{[%emt 00:01:50]} 43. b5 {[%clk 00:23:43]} {[%emt 00:01:10]} e3+ {[%clk
00:24:59]} {[%emt 00:00:43]} 44. Kxe3 {[%clk 00:23:21]} {[%emt 00:00:51]} Rc1
{[%clk 00:25:19]} {[%emt 00:00:12]} 45. b6 {[%clk 00:18:40]} {[%emt 00:05:11]}
Rb1 {[%clk 00:25:35]} {[%emt 00:00:13]} 46. Rb8 {[%clk 00:18:09]} {[%emt
00:01:01]} 1-0

[Event "Top 12 Féminin 2026"]
[Site "Asnières-sur-Seine, France"]
[Date "2026.05.17"]
[Round "5.14"]
[White "Auvray, Honorine"]
[Black "Haussernot, Cecile"]
[Result "0-1"]
[TimeControl "1h30 / 40 moves + 30m + 30sec/move"]
[WhiteTitle "WFM"]
[BlackTitle "WIM"]
[WhiteFideId "-"]
[BlackFideId "-"]
[WhiteElo "2025"]
[BlackElo "2243"]

1. c4 {[%clk 01:30:56]} {[%emt 00:00:03]} e5 {[%clk 01:29:47]} {[%emt
00:01:13]} 2. Nc3 {[%clk 01:30:56]} {[%emt 00:00:30]} Nf6 {[%clk 01:29:47]}
{[%emt 00:00:31]} 3. Nf3 {[%clk 01:31:08]} {[%emt 00:00:18]} e4 {[%clk
01:28:45]} {[%emt 00:01:32]} 4. Ng5 {[%clk 01:31:17]} {[%emt 00:00:20]} b5
{[%clk 01:28:33]} {[%emt 00:00:43]} 5. cxb5 {[%clk 01:07:44]} {[%emt 00:24:04]}
d5 {[%clk 01:28:44]} {[%emt 00:00:18]} 6. d4 {[%clk 01:04:35]} {[%emt
00:03:38]} a6 {[%clk 01:25:57]} {[%emt 00:03:19]} 7. e3 {[%clk 00:56:15]}
{[%emt 00:08:50]} axb5 {[%clk 01:18:24]} {[%emt 00:08:03]} 8. Bxb5+ {[%clk
00:55:51]} {[%emt 00:00:53]} c6 {[%clk 01:18:49]} {[%emt 00:00:06]} 9. Be2
{[%clk 00:55:37]} {[%emt 00:00:44]} Bd6 {[%clk 01:07:33]} {[%emt 00:11:46]} 10.
a3 {[%clk 00:30:32]} {[%emt 00:25:36]} O-O {[%clk 01:06:41]} {[%emt 00:01:22]}
11. Qc2 {[%clk 00:27:38]} {[%emt 00:03:24]} h6 {[%clk 01:01:20]} {[%emt
00:05:51]} 12. Nh3 {[%clk 00:27:10]} {[%emt 00:00:58]} Bxh3 {[%clk 01:00:59]}
{[%emt 00:00:50]} 13. gxh3 {[%clk 00:27:29]} {[%emt 00:00:11]} Qd7 {[%clk
01:00:41]} {[%emt 00:00:48]} 14. Bf1 {[%clk 00:24:24]} {[%emt 00:03:36]} Nh7
{[%clk 00:57:52]} {[%emt 00:03:20]} 15. Bd2 {[%clk 00:21:38]} {[%emt 00:03:15]}
Ng5 {[%clk 00:51:05]} {[%emt 00:07:17]} 16. O-O-O {[%clk 00:19:16]} {[%emt
00:02:51]} Qa7 {[%clk 00:41:25]} {[%emt 00:10:10]} 17. Nb1 {[%clk 00:18:05]}
{[%emt 00:01:41]} Nd7 {[%clk 00:40:06]} {[%emt 00:01:50]} 18. Bc3 {[%clk
00:11:21]} {[%emt 00:07:13]} Nb6 {[%clk 00:35:39]} {[%emt 00:04:58]} 19. h4
{[%clk 00:08:04]} {[%emt 00:03:47]} Nf3 {[%clk 00:34:56]} {[%emt 00:01:13]} 20.
Be2 {[%clk 00:08:11]} {[%emt 00:00:23]} Nxh4 {[%clk 00:34:14]} {[%emt
00:01:12]} 21. b4 {[%clk 00:07:04]} {[%emt 00:01:37]} f5 {[%clk 00:32:33]}
{[%emt 00:02:12]} 22. Rdg1 {[%clk 00:02:18]} {[%emt 00:05:15]} Qc7 {[%clk
00:30:22]} {[%emt 00:02:41]} 23. h3 {[%clk 00:01:47]} {[%emt 00:01:01]} g5
{[%clk 00:28:55]} {[%emt 00:01:57]} 24. f4 {[%clk 00:00:55]} {[%emt 00:01:22]}
exf3 {[%clk 00:29:17]} {[%emt 00:00:09]} 25. Be1 {[%clk 00:00:45]} {[%emt
00:00:40]} Bh2 {[%clk 00:21:47]} {[%emt 00:07:59]} 26. Bxh4 {[%clk 00:01:06]}
{[%emt 00:00:08]} Bxg1 {[%clk 00:22:08]} {[%emt 00:00:10]} 27. Rxg1 {[%clk
00:01:29]} {[%emt 00:00:07]} Qh2 {[%clk 00:18:22]} {[%emt 00:04:16]} 28. Re1
{[%clk 00:01:18]} {[%emt 00:00:40]} fxe2 {[%clk 00:17:59]} {[%emt 00:00:53]} 29.
Rxe2 {[%clk 00:01:47]} {[%emt 00:00:01]} Qxh3 {[%clk 00:17:50]} {[%emt
00:00:40]} 30. Be1 {[%clk 00:02:13]} {[%emt 00:00:03]} Nc4 {[%clk 00:09:54]}
{[%emt 00:08:27]} 31. Qd3 {[%clk 00:02:28]} {[%emt 00:00:15]} Rfe8 {[%clk
00:09:36]} {[%emt 00:00:48]} 32. Bd2 {[%clk 00:01:47]} {[%emt 00:01:11]} Re4
{[%clk 00:09:34]} {[%emt 00:00:32]} 0-1

[Event "Top 12 Féminin 2026"]
[Site "Asnières-sur-Seine, France"]
[Date "2026.05.17"]
[Round "5.15"]
[White "Richard, Emma"]
[Black "Grimault, Leane"]
[Result "1-0"]
[TimeControl "1h30 / 40 moves + 30m + 30sec/move"]
[WhiteTitle "WFM"]
[BlackTitle "-"]
[WhiteFideId "-"]
[BlackFideId "-"]
[WhiteElo "2106"]
[BlackElo "1932"]

1. e4 {[%clk 01:30:57]} {[%emt 00:00:02]} d5 {[%clk 01:30:48]} {[%emt
00:00:12]} 2. exd5 {[%clk 01:31:21]} {[%emt 00:00:07]} Qxd5 {[%clk 01:31:11]}
{[%emt 00:00:06]} 3. Nc3 {[%clk 01:31:43]} {[%emt 00:00:08]} Qa5 {[%clk
01:31:27]} {[%emt 00:00:15]} 4. d4 {[%clk 01:32:07]} {[%emt 00:00:06]} Nf6
{[%clk 01:31:43]} {[%emt 00:00:13]} 5. Nf3 {[%clk 01:32:28]} {[%emt 00:00:10]}
Bf5 {[%clk 01:31:43]} {[%emt 00:00:29]} 6. Bd2 {[%clk 01:32:42]} {[%emt
00:00:16]} c6 {[%clk 01:31:58]} {[%emt 00:00:15]} 7. Bc4 {[%clk 01:30:27]}
{[%emt 00:02:45]} Nbd7 {[%clk 01:32:14]} {[%emt 00:00:15]} 8. Qe2 {[%clk
01:26:17]} {[%emt 00:04:40]} Qc7 {[%clk 01:29:33]} {[%emt 00:03:10]} 9. Ne5
{[%clk 01:18:37]} {[%emt 00:08:10]} e6 {[%clk 01:26:02]} {[%emt 00:04:01]} 10.
Nxd7 {[%clk 01:14:33]} {[%emt 00:04:34]} Kxd7 {[%clk 01:17:13]} {[%emt
00:09:20]} 11. O-O-O {[%clk 01:11:34]} {[%emt 00:03:29]} Rd8 {[%clk 01:16:45]}
{[%emt 00:00:58]} 12. f3 {[%clk 01:03:29]} {[%emt 00:08:35]} h5 {[%clk
01:12:32]} {[%emt 00:04:42]} 13. Bg5 {[%clk 01:01:06]} {[%emt 00:02:54]} Kc8
{[%clk 01:10:46]} {[%emt 00:02:16]} 14. Kb1 {[%clk 01:00:38]} {[%emt 00:00:59]}
Be7 {[%clk 00:57:36]} {[%emt 00:13:39]} 15. h4 {[%clk 00:37:46]} {[%emt
00:23:23]} Nd5 {[%clk 00:51:43]} {[%emt 00:06:23]} 16. Bxd5 {[%clk 00:37:13]}
{[%emt 00:01:03]} Bxg5 {[%clk 00:48:31]} {[%emt 00:03:42]} 17. Bxe6+ {[%clk
00:30:36]} {[%emt 00:07:07]} Bxe6 {[%clk 00:48:25]} {[%emt 00:00:36]} 18. hxg5
{[%clk 00:31:01]} {[%emt 00:00:05]} Qf4 {[%clk 00:46:22]} {[%emt 00:02:32]} 19.
Qe5 {[%clk 00:29:23]} {[%emt 00:02:09]} Qxe5 {[%clk 00:46:04]} {[%emt
00:00:48]} 20. dxe5 {[%clk 00:29:49]} {[%emt 00:00:03]} Rxd1+ {[%clk 00:42:43]}
{[%emt 00:03:51]} 21. Nxd1 {[%clk 00:26:37]} {[%emt 00:03:42]} Rd8 {[%clk
00:37:17]} {[%emt 00:05:55]} 22. Kc1 {[%clk 00:25:53]} {[%emt 00:01:14]} Rd5
{[%clk 00:36:31]} {[%emt 00:01:16]} 23. Re1 {[%clk 00:24:11]} {[%emt 00:02:12]}
g6 {[%clk 00:34:11]} {[%emt 00:02:50]} 24. Nc3 {[%clk 00:24:01]} {[%emt
00:00:41]} Rd8 {[%clk 00:29:47]} {[%emt 00:04:53]} 25. Rd1 {[%clk 00:16:58]}
{[%emt 00:07:32]} Re8 {[%clk 00:26:42]} {[%emt 00:03:36]} 26. Ne4 {[%clk
00:15:07]} {[%emt 00:02:20]} Kc7 {[%clk 00:26:22]} {[%emt 00:00:49]} 27. Nd6
{[%clk 00:14:16]} {[%emt 00:01:22]} Re7 {[%clk 00:26:11]} {[%emt 00:00:41]} 28.
c4 {[%clk 00:14:37]} {[%emt 00:00:10]} Bd7 {[%clk 00:21:59]} {[%emt 00:04:41]}
29. Re1 {[%clk 00:14:23]} {[%emt 00:00:44]} Be6 {[%clk 00:21:54]} {[%emt
00:00:35]} 30. Kd2 {[%clk 00:13:46]} {[%emt 00:01:08]} Rd7 {[%clk 00:21:14]}
{[%emt 00:01:10]} 31. Kc3 {[%clk 00:11:46]} {[%emt 00:02:30]} Re7 {[%clk
00:20:42]} {[%emt 00:01:02]} 32. a4 {[%clk 00:10:31]} {[%emt 00:01:46]} Rd7
{[%clk 00:13:13]} {[%emt 00:07:58]} 33. a5 {[%clk 00:10:42]} {[%emt 00:00:19]}
Re7 {[%clk 00:12:38]} {[%emt 00:01:05]} 34. b4 {[%clk 00:10:38]} {[%emt
00:00:34]} Rd7 {[%clk 00:12:05]} {[%emt 00:01:02]} 35. Rd1 {[%clk 00:08:15]}
{[%emt 00:02:53]} Re7 {[%clk 00:11:16]} {[%emt 00:01:19]} 36. Kd4 {[%clk
00:07:14]} {[%emt 00:01:31]} Rd7 {[%clk 00:07:54]} {[%emt 00:03:52]} 37. b5
{[%clk 00:05:04]} {[%emt 00:02:40]} Re7 {[%clk 00:06:46]} {[%emt 00:01:38]} 38.
bxc6 {[%clk 00:04:48]} {[%emt 00:00:46]} Kxc6 {[%clk 00:06:36]} {[%emt
00:00:39]} 39. Rb1 {[%clk 00:04:56]} {[%emt 00:00:22]} Rd7 {[%clk 00:05:36]}
{[%emt 00:01:31]} 40. Rb5 {[%clk 00:04:41]} {[%emt 00:00:45]} b6 {[%clk
00:03:14]} {[%emt 00:02:51]} 41. Rb1 {[%clk 00:26:18]} {[%emt 00:08:53]} Bf5
{[%clk 00:30:17]} {[%emt 00:03:27]} 42. Ra1 {[%clk 00:26:24]} {[%emt 00:00:25]}
Be6 {[%clk 00:29:17]} {[%emt 00:01:30]} 43. axb6 {[%clk 00:26:33]} {[%emt
00:00:21]} Kxb6 {[%clk 00:28:38]} {[%emt 00:01:09]} 44. c5+ {[%clk 00:26:47]}
{[%emt 00:00:17]} Kc6 {[%clk 00:28:13]} {[%emt 00:00:55]} 45. Ra6+ {[%clk
00:27:11]} {[%emt 00:00:06]} Kc7 {[%clk 00:28:39]} {[%emt 00:00:03]} 46. Rxa7+
{[%clk 00:27:37]} {[%emt 00:00:04]} Kd8 {[%clk 00:29:06]} {[%emt 00:00:03]} 47.
Ra8+ {[%clk 00:27:40]} {[%emt 00:00:27]} 1-0

[Event "Top 12 Féminin 2026"]
[Site "Asnières-sur-Seine, France"]
[Date "2026.05.17"]
[Round "5.16"]
[White "Aubert, Estee"]
[Black "Ciarletta, Iris"]
[Result "1/2-1/2"]
[TimeControl "1h30 / 40 moves + 30m + 30sec/move"]
[WhiteTitle "-"]
[BlackTitle "-"]
[WhiteFideId "-"]
[BlackFideId "-"]
[WhiteElo "1974"]
[BlackElo "1901"]

1. d4 {[%clk 01:30:50]} {[%emt 00:00:09]} Nf6 {[%clk 01:30:44]} {[%emt
00:00:16]} 2. Nc3 {[%clk 01:31:15]} {[%emt 00:00:05]} d5 {[%clk 01:30:15]}
{[%emt 00:01:00]} 3. Bf4 {[%clk 01:31:39]} {[%emt 00:00:06]} c5 {[%clk
01:29:10]} {[%emt 00:01:35]} 4. e3 {[%clk 01:31:52]} {[%emt 00:00:16]} cxd4
{[%clk 01:29:19]} {[%emt 00:00:22]} 5. exd4 {[%clk 01:32:15]} {[%emt 00:00:08]}
a6 {[%clk 01:29:39]} {[%emt 00:00:10]} 6. Nf3 {[%clk 01:31:56]} {[%emt
00:00:48]} Bg4 {[%clk 01:27:18]} {[%emt 00:02:51]} 7. h3 {[%clk 01:31:42]}
{[%emt 00:00:44]} Bh5 {[%clk 01:26:49]} {[%emt 00:00:59]} 8. g4 {[%clk
01:27:43]} {[%emt 00:04:29]} Bg6 {[%clk 01:26:13]} {[%emt 00:01:06]} 9. Ne5
{[%clk 01:28:01]} {[%emt 00:00:12]} Ne4 {[%clk 01:21:57]} {[%emt 00:04:46]} 10.
Nxe4 {[%clk 01:22:45]} {[%emt 00:05:47]} Bxe4 {[%clk 01:21:33]} {[%emt
00:00:54]} 11. f3 {[%clk 01:22:20]} {[%emt 00:00:54]} Bg6 {[%clk 01:19:34]}
{[%emt 00:02:29]} 12. h4 {[%clk 01:18:57]} {[%emt 00:03:54]} f6 {[%clk
01:18:36]} {[%emt 00:01:28]} 13. Nxg6 {[%clk 01:18:11]} {[%emt 00:01:15]} hxg6
{[%clk 01:18:49]} {[%emt 00:00:18]} 14. Bd3 {[%clk 01:17:43]} {[%emt 00:00:57]}
g5 {[%clk 01:18:39]} {[%emt 00:00:41]} 15. Bg6+ {[%clk 01:17:59]} {[%emt
00:00:14]} Kd7 {[%clk 01:18:43]} {[%emt 00:00:25]} 16. Bg3 {[%clk 01:10:30]}
{[%emt 00:07:59]} gxh4 {[%clk 01:18:49]} {[%emt 00:00:25]} 17. Qe2 {[%clk
01:02:30]} {[%emt 00:08:29]} e6 {[%clk 01:16:13]} {[%emt 00:03:05]} 18. O-O-O
{[%clk 00:50:50]} {[%emt 00:12:10]} Rh6 {[%clk 01:14:09]} {[%emt 00:02:34]} 19.
Bxb8 {[%clk 00:24:40]} {[%emt 00:26:40]} Rxb8 {[%clk 01:13:56]} {[%emt
00:00:42]} 20. Rde1 {[%clk 00:22:38]} {[%emt 00:02:32]} Qe7 {[%clk 01:12:14]}
{[%emt 00:02:12]} 21. Bd3 {[%clk 00:22:41]} {[%emt 00:00:27]} Qd6 {[%clk
01:09:43]} {[%emt 00:03:02]} 22. Qe3 {[%clk 00:18:31]} {[%emt 00:04:40]} g5
{[%clk 01:05:03]} {[%emt 00:05:09]} 23. Re2 {[%clk 00:18:33]} {[%emt 00:00:29]}
Re8 {[%clk 01:00:51]} {[%emt 00:04:42]} 24. Bf5 {[%clk 00:15:51]} {[%emt
00:03:12]} Re7 {[%clk 00:59:45]} {[%emt 00:01:37]} 25. Bd3 {[%clk 00:15:21]}
{[%emt 00:00:59]} Rh8 {[%clk 00:52:16]} {[%emt 00:07:59]} 26. Kb1 {[%clk
00:15:38]} {[%emt 00:00:14]} Bg7 {[%clk 00:50:57]} {[%emt 00:01:49]} 27. Rhe1
{[%clk 00:11:48]} {[%emt 00:04:18]} Rc8 {[%clk 00:49:47]} {[%emt 00:01:43]} 28.
Bf5 {[%clk 00:09:55]} {[%emt 00:02:22]} 1/2-1/2